Cogmind - Beta 13 @@@ ROGUE MODE // 2024.04.02 @ 13:43:29 Player: Delta-Psyco Result: Destroyed by G-34 Mercenary with Small Laser Performance ------------- Evolutions (1) 500 Regions Visited (2) 400 Robots Destroyed (14) 70 Value Destroyed (384) 384 Prototype IDs (0) 0 Alien Tech Used (0) 0 Bonus (0) 0 TOTAL SCORE: 1354 Bonus ------- None Cogmind --------- Core Integrity 0/400 Matter 300/300 Energy 100/100 System Corruption 0% Temperature Cool (12) Movement Core (50) Location -9/Materials Parts ------- > --- POWER (1) -------- (None) > --- PROPULSION (2) --- (None) > --- UTILITY (4) ------ Targeting Computer > --- WEAPON (2) ------- Maul > --- INVENTORY (5) ---- Aluminum Leg Peak State ------------ > --- POWER ------------ Improved Ion Engine > --- PROPULSION ------- Aluminum Leg Aluminum Leg > --- UTILITY ---------- Small Storage Unit Structural Scanner Targeting Computer > --- WEAPON ----------- Small Laser Light Assault Rifle > --- INVENTORY -------- (None) [Rating: 9] Favorites ----------- Power Ion Engine Engine Ion Engine Propulsion Wheel Leg Aluminum Leg Wheel Wheel Utility Small Storage Unit Device Structural Scanner Storage Small Storage Unit Processor Targeting Computer Weapon Light Assault Rifle Energy Gun Small Laser Ballistic Gun Light Assault Rifle Impact Weapon Maul Build | -11 -10 -9 ------- Run | Yrd Mat Mat Slots Evolved 2 | . . 2 Power . | . . . Propulsion . | . . . Utility 2 | . . 2 Weapon . | . . . Parts Attached 15 | 6 5 4 Power 2 | 1 . 1 Engine 2 | 1 . 1 Core . | . . . Reactor . | . . . Propulsion 4 | 2 2 . Treads . | . . . Leg 2 | . 2 . Wheel 2 | 2 . . Hover . | . . . Flight . | . . . Utility 4 | 1 2 1 Device 1 | . . 1 Storage 1 | 1 . . Processor 2 | . 2 . Hackware . | . . . Protection . | . . . Artifact . | . . . Weapon 5 | 2 1 2 Energy Gun 2 | 1 1 . Energy Cannon . | . . . Ballistic Gun 1 | 1 . . Ballistic Cannon . | . . . Launcher . | . . . Special Weapon . | . . . Impact Weapon 2 | . . 2 Slashing Weapon . | . . . Piercing Weapon . | . . . Special Melee Weapon . | . . . Unidentified Prototypes . | . . . Parts Lost 12 | . 5 7 Power 2 | . 1 1 Propulsion 4 | . 2 2 Utility 3 | . 1 2 Weapon 3 | . 1 2 Highest Loss Streak 5 | . 5 5 To Critical Strikes . | . . . Average Slot Usage (%) 77 | . 85 68 Engine 9 | . 11 7 Leg 9 | . 3 15 Wheel 10 | . 21 . Device 4 | . . 9 Storage 11 | . 14 9 Processor 9 | . 7 11 Energy Gun 10 | . 13 7 Ballistic Gun 10 | . 14 7 Impact Weapon 1 | . . 3 Naked Turns . | . . . Heaviest Build 15 | 13 13 15 Greatest Support 20 | 20 20 20 Greatest Overweight (x) 2 | . 2 2 Average Overweight (x) . | . . . Largest Inventory Capacity 8 | 8 8 8 Average Capacity 7 | 6 8 7 Most Carried 4 | 4 2 2 Average Carried . | . . . Final Capacity 8 | 8 8 5 Final Carried 1 | . . 1 Class Distribution -------------------- 100% | Mutant Dominant Class ---------------- Mutant | -10/Materials Mutant | -9/Materials Resources | -11 -10 -9 ----------- Run | Yrd Mat Mat Matter Collected 365 | 236 85 44 Remotely . | . . . Salvage Created 500 | . 347 153 Parts 25 | . 23 2 Haulers Intercepted . | . . . Recyclers Shooed 3 | . 3 . Parts Field Recycled . | . . . Retrieved Matter . | . . . Parts Self-Destructed . | . . . Prevented . | . . . Kills | -11 -10 -9 ------- Run | Yrd Mat Mat Combat Hostiles Destroyed 12 | . 8 4 Guns 8 | . 7 1 AOE 1 | . 1 . Classes Destroyed 5 | . 4 1 Recycler 1 | . 1 . Operator 1 | . 1 . Swarmer 3 | . 3 . Grunt 8 | . 5 3 Duelist 1 | . . 1 Best Kill Streak 9 | . 9 2 Combat Bots Only 7 | . 7 2 Max Kills in Single Turn 1 | . 1 1 Gunslinging . | . . . Exploded 1 | . 1 . Melee . | . . . Uniques/NPCs Destroyed . | . . . Combat | -11 -10 -9 -------- Run | Yrd Mat Mat Hostile Shots Fired 147 | . 48 99 Missed 47 | . 10 37 Damage Taken 1581 | . 675 906 Core 561 | . 153 408 Absorbed by Shields . | . . . Core Remaining (%) 69 | 100 38 . Volleys Fired 38 | . 30 8 Largest 2 | . 2 2 Hottest 60 | . 60 60 Shots Fired 76 | . 60 16 Gun 76 | . 60 16 Cannon . | . . . Launcher . | . . . Special . | . . . Kinetic 39 | . 31 8 Thermal 20 | . 12 8 Explosive . | . . . Electromagnetic 17 | . 17 . Robot Hit Streak 8 | . 5 8 Robot Miss Streak 2 | . 2 2 Penetration Max . | . . . Secondary Targets 2 | . 2 . Max Gunslinging Chain 1 | . 1 . Shots Hit Robots 59 | . 39 20 Core Hits 21 | . 18 3 Critical Kills . | . . . Critical Parts Destroyed 1 | . . 1 Critical Strikes 1 | . . 1 Smash 1 | . . 1 Melee Attacks 11 | . . 11 Impact 11 | . . 11 Slashing . | . . . Piercing . | . . . Sneak Attacks . | . . . Combat Hostiles . | . . . Follow-up Attacks 2 | . . 2 Damage Inflicted 990 | . 594 396 Guns 535 | . 415 120 Cannons . | . . . Explosions 179 | . 179 . Melee 276 | . . 276 Ramming . | . . . Kinetic 219 | . 162 57 Thermal 316 | . 253 63 Explosive . | . . . Electromagnetic 179 | . 179 . Impact 276 | . . 276 Slashing . | . . . Piercing . | . . . Highest Corruption 8 | . 8 . Average Corruption 8 | . 8 . Corruption Purged . | . . . Corruption Blocked . | . . . Effects 2 | . 2 . Data Loss (minor) 1 | . 1 . Misfires 1 | . 1 . Overload Shots . | . . . Overflow Damage 113 | . 30 83 Projectiles . | . . . Explosions 30 | . 30 . Melee 83 | . . 83 Knockbacks . | . . . Impact . | . . . Kinetic . | . . . Secondary . | . . . Self-Inflicted Damage . | . . . Shots . | . . . Rammed . | . . . Targets Rammed . | . . . Kicked . | . . . Crushed . | . . . Highest Temperature 242 | . 242 113 Average Temperature 110 | . 129 42 Received Heat Transfer 564 | . 198 366 Siege Activations . | . . . Robots Corrupted . | . . . Combat Hostiles . | . . . Parts Fried 2 | . . 2 Impact Corruptions 5 | . . 5 Robots Melted . | . . . Combat Hostiles . | . . . Parts Melted . | . . . Heat Transferred 475 | . 325 150 Parts Sabotaged . | . . . Parts Stolen . | . . . Parts Stripped . | . . . Power Chain Reactions 2 | . 2 . Alert | -11 -10 -9 ------- Run | Yrd Mat Mat Peak Influence 179 | . 179 155 Initial 75 | . . 75 Average 80 | . 86 86 Maximum Alert Level . | . . . Low Security (%) 100 | 100 100 100 Level 1 . | . . . Level 2 . | . . . Level 3 . | . . . Level 4 . | . . . Level 5 . | . . . High Security . | . . . Max Security . | . . . Squads Dispatched 3 | . 1 2 Investigation 2 | . 1 1 Extermination . | . . . Reinforcement 1 | . . 1 Assault . | . . . Garrison . | . . . Intercept . | . . . Searches Triggered . | . . . Construction Impeded . | . . . Haulers Reinforced . | . . . Active Scanning Responses . | . . . Cargo Convoy Interrupts . | . . . Stealth | -11 -10 -9 --------- Run | Yrd Mat Mat Distress Signals . | . . . Communications Jammed . | . . . Distress Signals . | . . . Times Spotted 28 | . 12 16 Peak Tracking Total 12 | . 4 12 Tactical Retreats 1 | . . 1 Traps | -11 -10 -9 ------- Run | Yrd Mat Mat Traps Triggered 2 | . 1 1 Indirectly . | . . . Trap Hack Attempts . | . . . Triggered . | . . . Disarmed . | . . . Reprogrammed . | . . . Reused . | . . . Traps Extracted . | . . . Installed . | . . . Triggered . | . . . Machines | -11 -10 -9 ---------- Run | Yrd Mat Mat Machines Disabled . | . . . Max in Single Turn . | . . . Machines Repaired . | . . . Machines Dismantled . | . . . Machines Sabotaged . | . . . Overloaded Fab Kills . | . . . Hacking | -11 -10 -9 --------- Run | Yrd Mat Mat Machines Accessed 1 | . 1 . Terminals 1 | . 1 . Fabricators . | . . . Repair Stations . | . . . Recycling Units . | . . . Scanalyzers . | . . . Garrison Access . | . . . Total Hacks 1 | . 1 . Successful 1 | . 1 . Failed . | . . . Catastrophic . | . . . Database Lockouts . | . . . Manual . | . . . Terminals 1 | . 1 . Fabricators . | . . . Repair Stations . | . . . Recycling Units . | . . . Scanalyzers . | . . . Garrison Access . | . . . Terminal Hacks 1 | . 1 . Branch Access Points 1 | . 1 . Fabricator Hacks . | . . . Repair Station Hacks . | . . . Recycling Unit Hacks . | . . . Scanalyzer . | . . . Garrison Access Hacks . | . . . Unauthorized Hacks . | . . . Terminals . | . . . Fabricators . | . . . Repair Stations . | . . . Recycling Units . | . . . Scanalyzers . | . . . Garrison Access . | . . . Data Cores Recovered 1 | . 1 . Used . | . . . Hacking Detections 1 | . 1 . Full Trace Events . | . . . Feedback Events . | . . . Feedback Blocked . | . . . Robot Schematics Acquired . | . . . Robots Built . | . . . Authchips . | . . . Time . | . . . Total Robot Build Rating . | . . . Part Schematics Acquired . | . . . Parts Built . | . . . Authchips . | . . . Time . | . . . Total Part Build Rating . | . . . Parts Repaired . | . . . Time . | . . . Parts Recycled . | . . . Recycled Matter . | . . . Retrieved Matter . | . . . Retrieved Components . | . . . Parts Scanalyzed . | . . . Part Schematics Acquired . | . . . Parts Damaged . | . . . Bothacking | -11 -10 -9 ------------ Run | Yrd Mat Mat Used RIF Installer . | . . . Robots Hacked . | . . . Non-combat . | . . . Combat . | . . . Robot Hacks Applied . | . . . Relay Couplers Released . | . . . Fabnet Peak Effective % . | . . . Robots Rewired . | . . . Allies Hacked . | . . . Hacks Repelled . | . . . Allies | -11 -10 -9 -------- Run | Yrd Mat Mat Total Allies . | . . . Largest Group . | . . . Highest-Rated Group . | . . . Highest-Rated Ally . | . . . Total Orders . | . . . Ally Attacks . | . . . Total Damage . | . . . Kills . | . . . Allies Corrupted . | . . . Allies Melted . | . . . Intel | -11 -10 -9 ------- Run | Yrd Mat Mat Robot Analysis Total . | . . . Derelict Logs Recovered . | . . . Drone Launches . | . . . Drone Recoveries . | . . . Exploration | -11 -10 -9 ------------- Run | Yrd Mat Mat Turns Passed 493 | 38 237 218 Spaces Moved 334 | 36 163 135 Core 45 | 10 2 33 Treads . | . . . Legs 130 | . 28 102 Wheels 159 | 26 133 . Hover . | . . . Flight . | . . . Fastest Speed 50 | 50 80 100 Average Speed 98 | 71 88 116 Slowest Speed 150 | 80 150 150 Overloaded Moves . | . . . Propulsion Burnouts . | . . . Robots Hopped . | . . . Cave-ins Triggered 1 | . 1 . Exploration Rate (%) 21 | 3 39 22 Regions Visited 2 Branch Regions . Pre-discovered Areas . | . . . Known Exits Taken . | . . . Unknown Exits Taken 2 | 1 1 . Scrap Searched . | . . . Spaces Dug . | . . . Terrain Destroyed 13 | . 13 . Melee . | . . . Projectile . | . . . AOE 13 | . 13 . Terrain Rammed . | . . . Walls Destroyed . | . . . Machines Disabled . | . . . Actions | -11 -10 -9 --------- Run | Yrd Mat Mat Total 412 | 47 203 162 Wait 2 | . 1 1 Move 332 | 35 162 135 Hop . | . . . Pick Up 16 | 6 5 5 Fast Attach . | . . . Attach 15 | 6 5 4 Detach . | . . . Swap . | . . . Drop . | . . . Fire 38 | . 30 8 Melee 9 | . . 9 Ram . | . . . Kick . | . . . Crush . | . . . Escape Stasis . | . . . Rewire . | . . . Trap . | . . . Miscellaneous . | . . . Route ------- -11/Scrapyard -10/Materials (discovered 3 exits: [*Mat] / *Min x2) -9/Materials History --------- Turn | Location | Event 9 | -11/Scrapyard | Discovered new exit (range 16) 39 | -11/Scrapyard | Entered Materials 95 | -10/Materials | Discovered new exit (range 15) 128 | -10/Materials | Discovered new exit (range 13) 200 | -10/Materials | Crushed by falling debris 200 | -10/Materials | Core integrity fell below 50% 228 | -10/Materials | Destroyed 7 combat bots 254 | -10/Materials | Lost 5 parts (1p2n1u1w) 263 | -10/Materials | Identified exit to Mines 276 | -10/Materials | Entered another Materials area 276 | -9/Materials | Evolved 2 slots: Utility x2 316 | -9/Materials | Build established: Mutant 457 | -9/Materials | Lost 5 parts (1p2n2w) 473 | -9/Materials | Core integrity fell below 50% 490 | -9/Materials | Core integrity fell below 20% 494 | -9/Materials | Destroyed by G-34 Mercenary with Small Laser Last Messages --------------- G-34 Mercenary system corrupted by crushing effect. G-34 Mercenary system terminally corrupted. Aluminum Leg fried. Maul follow-up attack on G-34 Mercenary. Destroyed Heat Sink. G-34 Mercenary system corrupted by crushing effect. G-34 Mercenary system terminally corrupted. Acquired 15 matter. Maul follow-up attack on L-31 Rogue. Structural Scanner destroyed. Maul severed. R-06 Scavenger collects Corrupted Aluminum Leg. R-06 Scavenger collects Maul. Destroyed Imp. Ion Engine. L-31 Rogue system corrupted by crushing effect. Destroyed Katana. L-31 Rogue system corrupted by crushing effect. L-31 Rogue system terminally corrupted. Map ----- +----------------------------------------------------+ | ??????????????????????????????????????????????? | | ??????????????????????????????????????????????? | | ??????????????????????????????????????????????? | | ??????????????????????????????????????????????? | | ??????????????????????????????????????????????? | | ??????????????????????????????????????????????? | | ??????????????????????????????????????????????? | | ??????????????????????????????????????????????? | | ??????????????????????????????????????????????? | | ??????????????????????????????????????????????? | | ??????????????????????????????????????????????? | | ???????????????? ?????????????????????????????? | | ????????????????? ????????????????????????????? | | ????????????????? ????????????????????????????? | | ?????????????? ######????????? # ????????? | | ??????????????####+#######????????? # ????????? | | ?????????????? # ########## ????????? | | ?????????????? # """" ##########Y ????????? | | ?????????????? # ""R" + ????????? | | ???????? # "" " # ????????? | | ##+###???????? # # Y g ????????? | | # ????????## /// + g ??????????? | | # """ ????????## /// #gg ????????????? | | # """ ???????## / #% """ "????????????? | | # """ ???????## +% """ "????????????? | | # ###########/#####@ """ "????????????? | | # """ ########### #####g ?????????? | | # """ + ] ?????? | | / """ # ################### ####+##### ?????? | | # ! # ################### ## ## ?????? | | # # ################??? ##??????????????? | | # # ########## ????????????????????? | | #+####### #### # """??????????????????????? | | # ####### # """??????????????????????? | | ?????#### + """ ?????????????????????? | | # """??????????????????????? | | ############ # ?????????????????????????? | | ? ############## ###/?????????????????????????? | | ??????########## ### ?????????????????????????? | | ??????## # ##???????????????????????????? | | ??????## + ##???????????????????????????? | | ? ###?## # ###??????????????????????????? | | ############## ###??????????????????????????? | | ########## ##??????????????????????????? | | ## T ##??????????????????????????? | | ## ## ##???????????????????????? | | ## """ ##### ##???????????????????????? | | ## """" ??????????????????? | | ## """"" #########????????????????????????? | | ## """"" #########???################?????? | +----------------------------------------------------+ Best States ------------- Heat Dissipation 28 Energy Generation 12 Energy Capacity 265 Matter Stores 300 Matter Capacity 300 Sight Range 16 Terrain Scan Density 10 Evasion (%) 55 Targeting Accuracy 5 Item Schematics ----------------- None Robot Schematics ------------------ None Fabricated ------------ Nothing Alien Tech Used ----------------- None Achievements -------------- Unlikely Earthworm Challenges ------------ None Game ------ Seed WaveGuidedKit Manual? 0 Play Time 00:13:19 Cumulative 8.5 hours Start 2024.04.02 @ 13:29:57 End 2024.04.02 @ 13:43:29 Sessions 1 Manual Loads 0 Difficulty Rogue Special Mode None Game No. 10 Rogue 10 Adventurer 0 Explorer 0 Win Type - Total 0 Types 0/0/0/0/0/0/0/0/0 Lore% 6 Gallery% 10 Achievement% 12 Wizard Run 0 Options --------- Layout 1 ASCII 0 Keyboard 0 Movement Numpad Keybinds 0 Fullscreen 1 Font 24/Smallcaps Map View 50x35 Zoom Use 0% Tactical HUD 0 Map Filters NONE Filters NONE Steam 1 RUN: f6fc7c36-aa51-4c88-9190-298e87f4ce4e